bitfinex/quotes_BTCUSD_20240718
["timestamp","ask_amount","ask_price","bid_price","bid_amount"]
[1721335093268,0.18884669,63753.0,63752.0,0.40000403]
[1721335093433,0.18885018,63753.0,63752.0,0.4000038]
[1721335094115,0.18885018,63753.0,63752.0,1.0274338]
[1721335094356,0.03446844,63753.0,63752.0,1.4046488]
[1721335096387,0.0091512,63753.0,63752.0,1.40463665]
[1721335096800,0.0091512,63753.0,63752.0,1.45165548]
[1721335096992,0.0091512,63753.0,63752.0,1.52805548]
[1721335097568,0.0091512,63753.0,63752.0,1.48103665]
[1721335097770,0.0091512,63753.0,63752.0,1.52805498]
[1721335098525,0.0091512,63753.0,63752.0,1.48103665]
[1721335099390,0.0091512,63753.0,63752.0,1.350815]
[1721335099597,0.0091512,63753.0,63752.0,1.48102947]
[1721335099798,0.0091512,63753.0,63752.0,1.55155301]
[1721335100002,0.0091512,63753.0,63752.0,1.89925716]
[1721335100579,0.0091512,63753.0,63752.0,1.55155301]
[1721335101204,0.0091512,63753.0,63752.0,1.86526801]
[1721335101380,0.0091512,63753.0,63752.0,2.21297213]
[1721335102663,0.0091512,63753.0,63752.0,2.2129689]
[1721335102869,0.0091512,63753.0,63752.0,2.14244536]
[1721335103070,0.0091512,63753.0,63752.0,2.14243404]
[1721335103271,0.0091512,63753.0,63752.0,2.45056905]
[1721335103382,0.0091512,63753.0,63752.0,2.35657329]
[1721335103585,0.0091512,63753.0,63752.0,2.14243248]
[1721335104864,0.0091512,63753.0,63752.0,2.35656936]
[1721335105079,0.0091512,63753.0,63752.0,2.33774285]
[1721335105285,0.0091512,63753.0,63752.0,2.4505539]
[1721335105775,0.0091512,63753.0,63752.0,2.45053764]
[1721335106549,0.0091512,63753.0,63752.0,2.33773326]
[1721335106790,0.0091512,63753.0,63752.0,2.14242405]
[1721335107261,0.0091512,63753.0,63752.0,2.16125147]
[1721335107504,0.0091512,63753.0,63752.0,2.14242405]
[1721335107954,0.0091512,63753.0,63752.0,2.45053764]
[1721335108170,0.0091512,63753.0,63752.0,2.65144826]
[1721335108372,0.0091512,63753.0,63752.0,2.71654651]
[1721335108776,0.0091512,63753.0,63752.0,4.14644826]
[1721335108988,0.0081512,63753.0,63752.0,3.8139081]
[1721335109189,0.0091512,63753.0,63752.0,4.15040023]
[1721335109399,0.0101512,63753.0,63752.0,4.16440023]
[1721335109584,0.0091512,63753.0,63752.0,4.15040023]
[1721335110125,0.0101512,63753.0,63752.0,4.16440023]
[1721335110332,0.0091512,63753.0,63752.0,4.15340265]
[1721335110531,0.0101512,63753.0,63752.0,4.28477145]
[1721335111270,0.0091512,63753.0,63752.0,4.27077145]
[1721335111507,0.0091512,63753.0,63752.0,4.28477145]
[1721335111728,0.0081512,63753.0,63752.0,4.27077145]
[1721335111937,0.0081512,63753.0,63752.0,4.25677145]
[1721335112128,0.0081512,63753.0,63752.0,4.16740462]
[1721335112378,0.0081512,63753.0,63752.0,4.28475983]
[1721335112542,0.0081512,63753.0,63752.0,4.14056403]
[1721335112703,0.0081512,63753.0,63752.0,4.28476085]
[1721335113224,0.0081512,63753.0,63752.0,4.2847402]
[1721335113621,0.0081512,63753.0,63752.0,4.23249215]
[1721335114278,0.0081512,63753.0,63752.0,4.28472283]
[1721335115023,0.0081512,63753.0,63752.0,4.1673943]
[1721335115244,0.0081512,63753.0,63752.0,3.81973426]
[1721335115447,0.0081512,63753.0,63752.0,4.16739642]
[1721335117667,0.0081512,63753.0,63752.0,4.2611618]
[1721335118597,0.0081512,63753.0,63752.0,4.16739367]
[1721335118854,0.0081512,63753.0,63752.0,3.97209943]
[1721335119146,0.0081512,63753.0,63752.0,4.26115387]
[1721335119873,0.0081512,63753.0,63752.0,4.1673936]
[1721335120513,0.0081512,63753.0,63752.0,4.26114188]
[1721335120685,0.0081512,63753.0,63752.0,4.26114101]
[1721335121102,0.0081512,63753.0,63752.0,4.1673936]
[1721335121717,0.0081512,63753.0,63752.0,4.2611303]
[1721335122094,0.0081512,63753.0,63752.0,4.26113097]
[1721335122611,0.0081512,63753.0,63752.0,4.24713097]
[1721335123220,0.0081512,63753.0,63752.0,2.74713097]
[1721335124446,0.0081512,63753.0,63752.0,2.73313097]
[1721335124847,0.0081512,63753.0,63752.0,2.76114774]
[1721335125623,0.0081512,63753.0,63752.0,2.74714774]
[1721335125822,0.0081512,63753.0,63752.0,2.73314774]
[1721335126023,0.0081512,63753.0,63752.0,2.74714774]
[1721335127179,0.0081512,63753.0,63752.0,4.16739368]
[1721335127495,0.0081512,63753.0,63752.0,4.26114774]
[1721335127695,0.0081512,63753.0,63752.0,4.16739368]
[1721335128119,0.0081512,63753.0,63752.0,4.16739664]
[1721335128518,0.0081512,63753.0,63752.0,4.26107806]
[1721335129794,0.0081512,63753.0,63752.0,4.16739664]
[1721335130896,0.0081512,63753.0,63752.0,4.26109227]
[1721335131096,0.0081512,63753.0,63752.0,4.16739664]
[1721335131246,0.0081512,63753.0,63752.0,2.667392]
[1721335131655,0.0081512,63753.0,63752.0,2.66739148]
[1721335132267,0.00843,63759.0,63758.0,1.411587]
[1721335132472,0.00843,63759.0,63758.0,2.11703394]
[1721335132655,0.07717479,63771.0,63770.0,0.784067]
[1721335132987,0.07717479,63771.0,63770.0,1.71411526]
[1721335134351,0.07717479,63771.0,63770.0,1.72411526]
[1721335134550,0.07717479,63771.0,63770.0,1.72410054]
[1721335134726,0.07717479,63771.0,63770.0,1.72710054]
[1721335135129,0.07717479,63771.0,63770.0,1.73810054]
[1721335135884,0.22137479,63771.0,63770.0,1.03824654]
[1721335136081,0.22137479,63771.0,63770.0,1.11084654]
[1721335136283,0.37575653,63771.0,63770.0,0.41099254]
[1721335136529,0.40103972,63771.0,63770.0,0.72461954]
[1721335136730,0.40103972,63771.0,63770.0,0.15417954]
[1721335136934,0.40103972,63771.0,63770.0,0.024]
[1721335137344,0.40103972,63771.0,63770.0,0.013]
[1721335137550,0.25685796,63771.0,63768.0,0.1]
[1721335137721,0.18247717,63770.0,63769.0,0.13020314]
[1721335137930,0.17968317,63770.0,63768.0,0.1]
[1721335138135,0.02809543,63769.0,63768.0,0.1]
[1721335138331,0.32328317,63769.0,63768.0,0.230204]
[1721335140164,0.32528317,63769.0,63768.0,0.230204]
[1721335140592,0.32528317,63769.0,63768.0,0.1]
[1721335140792,0.32528317,63769.0,63768.0,0.13020449]
[1721335141126,0.29998174,63769.0,63768.0,0.2302048]
[1721335141312,0.32528822,63769.0,63768.0,0.2302048]
[1721335141691,0.32628822,63769.0,63768.0,0.2302048]
[1721335143044,0.30098174,63769.0,63768.0,0.1]
[1721335143246,0.32626185,63769.0,63768.0,0.23020066]
[1721335143458,0.32532448,63769.0,63768.0,0.23020066]
[1721335144279,0.32532448,63769.0,63768.0,0.38701866]
[1721335146399,0.30004437,63769.0,63768.0,0.256818]
[1721335146603,0.30004437,63769.0,63768.0,0.3870213]
[1721335146604,0.32535109,63769.0,63768.0,0.3870213]
[1721335148166,0.32535109,63769.0,63768.0,0.7006573]
[1721335148368,0.02830672,63769.0,63768.0,1.3279293]
[1721335149354,0.02530672,63769.0,63768.0,1.3279293]
[1721335149566,0.0783,63772.0,63771.0,0.470433]
[1721335149721,0.25803358,63772.0,63771.0,0.60063047]
[1721335149928,0.25803539,63772.0,63771.0,0.470433]
[1721335150131,0.25803539,63772.0,63771.0,0.60062934]
[1721335152397,0.25903539,63772.0,63771.0,0.60062934]
[1721335152896,0.25902295,63772.0,63771.0,0.60062922]
[1721335153278,0.26002295,63772.0,63771.0,0.60062922]
[1721335155892,0.26002295,63772.0,63771.0,0.13019622]
[1721335156092,0.0769,63770.0,63769.0,0.156815]
[1721335156205,0.25662565,63770.0,63769.0,0.28701416]
[1721335156607,0.25662565,63770.0,63769.0,0.13019916]
[1721335156814,0.31922565,63770.0,63769.0,0.13019916]
[1721335157224,0.32022565,63770.0,63769.0,0.13019916]
[1721335158263,0.32022565,63770.0,63769.0,0.13119916]
[1721335158879,0.32022565,63770.0,63769.0,0.28801516]
[1721335159090,0.29488174,63770.0,63769.0,0.157816]
[1721335159282,0.32019955,63770.0,63769.0,0.28801564]
[1721335159487,0.29488174,63770.0,63769.0,0.157816]
[1721335159689,0.32019955,63770.0,63769.0,0.28801564]
[1721335160090,0.32020034,63770.0,63769.0,0.28801564]
[1721335162473,0.29488174,63770.0,63769.0,0.28801549]
[1721335162705,0.32021717,63770.0,63769.0,0.28801549]
[1721335164513,0.32021717,63770.0,63769.0,0.60164749]
[1721335164753,0.18071717,63770.0,63769.0,0.98787949]
[1721335165566,0.18068868,63770.0,63769.0,0.85768]
[1721335166448,0.02630694,63770.0,63769.0,1.30151018]
[1721335166853,0.02630694,63770.0,63769.0,1.36731018]
[1721335168217,0.02630694,63770.0,63769.0,0.98787818]
[1721335168637,0.001,63770.0,63769.0,0.85768]
[1721335168754,0.001,63770.0,63769.0,0.9878723]
[1721335168958,0.02630799,63770.0,63769.0,0.9878723]
[1721335169201,0.02630799,63770.0,63769.0,0.98787276]
[1721335169202,0.02629579,63770.0,63769.0,0.98787276]
[1721335171259,0.02629487,63770.0,63769.0,0.98787276]
[1721335172088,0.02629487,63770.0,63769.0,0.98787288]
[1721335175190,0.001,63770.0,63769.0,0.85768]
[1721335175397,0.001,63770.0,63769.0,0.98787323]
[1721335175765,0.02629695,63770.0,63769.0,0.98787323]
[1721335178473,0.02629695,63770.0,63769.0,0.85768]
[1721335178474,0.001,63770.0,63769.0,0.85768]
[1721335178683,0.0262866,63770.0,63769.0,0.98787274]
[1721335178896,0.02628453,63770.0,63769.0,0.98787255]
[1721335179478,0.02629141,63770.0,63769.0,0.98787248]
[1721335179928,0.02629141,63770.0,63769.0,0.13119248]
[1721335179929,0.26307315,63770.0,63769.0,0.13119248]
[1721335181598,0.23778174,63770.0,63769.0,0.157816]
[1721335181804,0.26313162,63770.0,63769.0,0.28801053]
[1721335182382,0.18073162,63770.0,63769.0,0.28801053]
[1721335183240,0.18073162,63770.0,63769.0,0.60164253]
[1721335183444,0.18073162,63770.0,63769.0,0.97687453]
[1721335183863,0.18073162,63770.0,63769.0,1.13027453]
[1721335184232,0.18073162,63770.0,63769.0,1.05767453]
[1721335184432,0.18073162,63770.0,63769.0,1.13027453]
[1721335184831,0.1807095,63770.0,63769.0,1.13027197]
[1721335185419,0.1807095,63770.0,63769.0,1.04947197]
[1721335185624,0.1807095,63770.0,63769.0,0.98787197]
[1721335186438,0.1807095,63770.0,63769.0,0.98878497]
[1721335186811,0.1815395,63770.0,63769.0,0.91618497]
[1721335187027,0.1815395,63770.0,63769.0,0.13210497]
[1721335187288,0.4161525,63770.0,63769.0,0.13210497]
[1721335187520,0.4161525,63770.0,63769.0,0.001913]
[1721335187521,0.4887525,63770.0,63769.0,0.001913]
[1721335187739,0.3319395,63770.0,63769.0,0.001913]
[1721335187957,0.33179368,63770.0,63769.0,0.001913]
[1721335188172,0.33179368,63770.0,63769.0,0.000913]
[1721335188388,0.33168873,63770.0,63769.0,0.000913]
[1721335188603,0.26008873,63770.0,63769.0,0.000913]
[1721335188866,0.25908873,63770.0,63769.0,0.000913]
[1721335189143,0.41869573,63770.0,63769.0,0.001913]
[1721335189376,0.41790173,63770.0,63769.0,0.001913]
[1721335189807,0.41790173,63770.0,63759.0,0.31459]
[1721335189808,0.470514,63760.0,63759.0,0.000913]
[1721335190026,0.28355873,63760.0,63759.0,0.000913]
[1721335190245,0.46339673,63760.0,63759.0,0.000913]
[1721335190667,0.30655873,63760.0,63759.0,0.000913]
[1721335190972,0.30636999,63760.0,63759.0,0.000913]
[1721335191158,0.31577006,63760.0,63759.0,0.000913]
[1721335191362,0.28947006,63760.0,63759.0,0.000913]
[1721335191538,0.1978588,63760.0,63759.0,0.158753]
[1721335191772,0.1978588,63760.0,63759.0,0.472434]
[1721335191972,0.1888588,63760.0,63759.0,0.471434]
[1721335192176,0.1978588,63760.0,63759.0,0.472434]
[1721335192664,0.1888588,63760.0,63759.0,0.471434]
[1721335192849,0.1958588,63760.0,63759.0,0.472434]
[1721335193261,0.1938588,63760.0,63759.0,0.471434]
[1721335193708,0.1958588,63760.0,63759.0,0.472434]
[1721335194049,0.16138174,63760.0,63759.0,0.472434]
[1721335194279,0.19584447,63760.0,63759.0,0.472434]
[1721335195671,0.1958432,63760.0,63759.0,0.472434]
[1721335195895,0.1958432,63760.0,63759.0,0.786115]
[1721335196302,0.16138174,63760.0,63759.0,0.786115]
[1721335196695,0.19584521,63760.0,63759.0,0.786115]
[1721335197276,0.19583004,63760.0,63759.0,0.786115]
[1721335197708,0.1958309,63760.0,63759.0,0.472434]
[1721335198653,0.1958309,63760.0,63759.0,0.786115]
[1721335200596,0.19582618,63760.0,63759.0,0.786115]
[1721335201544,0.007,63760.0,63759.0,1.237196]
[1721335201723,0.007,63760.0,63759.0,1.315996]
[1721335202135,0.007,63760.0,63759.0,1.44620443]
[1721335202563,0.007,63760.0,63759.0,1.85988543]
[1721335202972,0.007,63760.0,63759.0,1.85987962]
[1721335203417,0.005,63760.0,63759.0,1.85887962]
[1721335203619,0.005,63760.0,63759.0,1.85987962]
[1721335203827,0.007,63760.0,63759.0,1.85987962]
[1721335204180,0.002,63760.0,63759.0,1.85987962]
[1721335204590,0.003,63760.0,63759.0,2.22751246]
[1721335205006,0.001,63760.0,63759.0,2.22651246]
[1721335205406,0.001,63760.0,63759.0,2.23051246]
[1721335205609,0.001,63760.0,63759.0,3.73051246]
[1721335205852,0.001,63760.0,63759.0,3.68354897]
[1721335206052,0.001,63760.0,63759.0,3.73050278]
[1721335206731,0.001,63760.0,63759.0,3.60031079]
[1721335206956,0.001,63760.0,63759.0,3.73050151]
[1721335207390,0.001,63760.0,63759.0,2.23050151]
[1721335208219,0.001,63760.0,63759.0,2.55001887]
[1721335208393,0.001,63760.0,63759.0,2.79830619]
[1721335208596,0.001,63760.0,63759.0,2.80294712]
[1721335208996,0.001,63760.0,63759.0,2.68556515]
[1721335209202,0.001,63760.0,63759.0,2.20373974]
[1721335209533,0.001,63760.0,63759.0,2.8078833]
[1721335209902,0.001,63760.0,63759.0,2.68152876]
[1721335210064,0.001,63760.0,63759.0,2.79888291]
[1721335210265,0.001,63760.0,63759.0,2.69252876]
[1721335210488,0.07717479,63768.0,63767.0,1.474284]
[1721335210696,0.07717479,63768.0,63767.0,1.85456152]
[1721335212077,0.07717479,63768.0,63767.0,1.85556152]
[1721335212425,0.07717479,63768.0,63767.0,1.725384]
[1721335212624,0.07717479,63768.0,63767.0,1.85856705]
[1721335214527,0.00083,63770.0,63769.0,1.411344]
[1721335214735,0.00083,63770.0,63769.0,1.78192705]
[1721335215890,0.00083,63770.0,63769.0,1.651744]
[1721335216094,0.00083,63770.0,63769.0,1.78192193]
[1721335216368,0.00083,63770.0,63769.0,1.78692193]
[1721335216505,0.00083,63770.0,63769.0,1.78992193]
[1721335216704,0.00083,63770.0,63769.0,1.78992176]
[1721335217094,0.00083,63770.0,63769.0,1.70942176]
[1721335217294,0.00083,63770.0,63769.0,1.71342176]
[1721335217932,0.00083,63770.0,63769.0,1.70842176]
[1721335218144,0.00083,63770.0,63769.0,1.33788976]
[1721335218664,0.00083,63770.0,63769.0,1.32788976]
[1721335218905,0.00083,63770.0,63769.0,1.32889709]
[1721335219125,0.00083,63770.0,63769.0,1.32789709]
[1721335219296,0.00083,63770.0,63769.0,1.32889709]
[1721335219598,0.00083,63770.0,63769.0,1.32789709]
[1721335221016,0.00183,63770.0,63769.0,1.32789709]
[1721335221249,0.00083,63770.0,63769.0,1.32789709]
[1721335222053,0.00083,63770.0,63769.0,1.197712]
[1721335222369,0.00083,63770.0,63769.0,1.32789678]
[1721335225252,0.00083,63770.0,63769.0,1.327898]
[1721335225659,0.00083,63770.0,63769.0,1.32789767]
[1721335227164,0.0726,63790.0,63770.0,0.313625]
[1721335227375,0.0726,63790.0,63772.0,0.0726]
[1721335227376,0.156778,63785.0,63772.0,0.0726]
[1721335227503,0.18884336,63784.0,63778.0,0.156792]
[1721335227706,0.03446162,63783.0,63779.0,0.1]
[1721335227923,0.15438174,63782.0,63779.0,0.1]
[1721335228113,0.03446162,63781.0,63779.0,0.1]
[1721335228310,0.156774,63786.0,63779.0,0.1]
[1721335228311,0.15438174,63780.0,63779.0,0.1]
[1721335228517,0.18881319,63780.0,63779.0,0.1]
[1721335228740,0.18881319,63780.0,63778.0,0.157792]
[1721335229093,0.18881319,63780.0,63770.0,0.314625]
[1721335229094,0.49778824,63779.0,63770.0,0.001]
[1721335229392,0.156796,63777.0,63770.0,0.001]
[1721335229584,0.38836753,63771.0,63770.0,0.001]
[1721335229787,0.156818,63768.0,63759.0,0.000913]
[1721335229988,0.21181319,63767.0,63760.0,0.002794]
[1721335230294,0.14443145,63766.0,63761.0,0.156835]
[1721335230509,0.18881319,63765.0,63764.0,0.229425]
[1721335230860,0.18881319,63765.0,63764.0,0.543081]
[1721335231472,0.18881319,63765.0,63764.0,0.607981]
[1721335231690,0.1971869,63765.0,63764.0,0.543081]
[1721335231897,0.18881319,63765.0,63764.0,0.543081]
[1721335232092,0.19681319,63765.0,63764.0,0.544081]
[1721335232296,0.20281319,63765.0,63764.0,0.545081]
[1721335232533,0.20281319,63765.0,63764.0,0.231425]
[1721335232732,0.21117338,63765.0,63764.0,0.158825]
[1721335234530,0.17674193,63765.0,63764.0,0.158825]
[1721335234738,0.21112964,63765.0,63764.0,0.002]
[1721335234940,0.19518174,63765.0,63764.0,0.002]
[1721335235164,0.23792793,63765.0,63764.0,0.002]
[1721335237719,0.23783986,63765.0,63764.0,0.002]
[1721335239298,0.21103986,63765.0,63764.0,0.158828]
[1721335239497,0.21103986,63765.0,63764.0,0.78614]
[1721335239899,0.20268116,63765.0,63764.0,0.78614]
[1721335240102,0.25248116,63765.0,63764.0,0.002]
[1721335240562,0.20946037,63765.0,63764.0,0.002]
[1721335240705,0.20946037,63765.0,63764.0,0.537984]
[1721335240706,0.17509509,63765.0,63764.0,0.537984]
[1721335241053,0.2027627,63765.0,63764.0,0.537984]
[1721335241640,0.2027627,63765.0,63764.0,0.85164]
[1721335243095,0.16838174,63765.0,63764.0,1.215296]
[1721335243461,0.16838174,63765.0,63764.0,0.85164]
[1721335244306,0.16838174,63765.0,63764.0,0.78614]
[1721335244503,0.20274138,63765.0,63764.0,0.78614]
[1721335244868,0.16838174,63765.0,63764.0,0.78614]
[1721335245066,0.20272426,63765.0,63764.0,0.78614]
[1721335245305,0.16838174,63765.0,63764.0,0.78614]
[1721335245509,0.16838174,63765.0,63764.0,0.83614]
[1721335246130,0.16838174,63765.0,63764.0,0.78614]
[1721335247153,0.16838174,63765.0,63764.0,0.83614]
[1721335247563,0.16838174,63765.0,63764.0,1.149796]
[1721335252247,0.20273483,63765.0,63764.0,1.149796]
[1721335252469,0.16838174,63765.0,63764.0,1.27999849]
[1721335252888,0.16838174,63765.0,63764.0,1.149796]
[1721335253091,0.16838174,63765.0,63764.0,1.27999863]
[1721335253635,0.16838174,63765.0,63764.0,1.149796]
[1721335253926,0.16838174,63765.0,63764.0,1.27999787]
[1721335254053,0.16838174,63765.0,63764.0,1.27999773]
[1721335254454,0.16838174,63765.0,63764.0,1.2799983]
[1721335255771,0.014,63765.0,63764.0,1.7380543]
[1721335256766,0.014,63765.0,63764.0,1.73804708]
[1721335256966,0.014,63765.0,63764.0,1.73704708]
[1721335257187,0.006,63765.0,63764.0,1.73704708]
[1721335257367,0.0776,63778.0,63777.0,0.78398]
[1721335257743,0.28933869,63778.0,63777.0,0.78398]
[1721335258152,0.29402387,63778.0,63777.0,0.78398]
[1721335258976,0.30602387,63778.0,63777.0,0.78498]
[1721335259549,0.31802387,63778.0,63777.0,0.78598]
[1721335259959,0.28366692,63778.0,63777.0,0.78598]
[1721335260158,0.31802292,63778.0,63777.0,0.78598]
[1721335260441,0.30602292,63778.0,63777.0,0.78498]
[1721335261092,0.31702292,63778.0,63777.0,0.78598]
[1721335262588,0.31701596,63778.0,63777.0,0.78598]
[1721335262792,0.28266692,63778.0,63777.0,0.78598]
[1721335262903,0.31701567,63778.0,63777.0,0.78598]
[1721335264931,0.31701049,63778.0,63777.0,0.78598]
[1721335266852,0.28266692,63778.0,63777.0,0.78598]
[1721335268010,0.31702098,63778.0,63777.0,0.78598]
[1721335268865,0.28266692,63778.0,63777.0,0.78598]
[1721335269077,0.31703837,63778.0,63777.0,0.78598]
[1721335270649,0.32484209,63778.0,63777.0,0.78598]
[1721335271270,0.32717249,63778.0,63777.0,0.78598]
[1721335274314,0.29279732,63778.0,63777.0,0.78598]
[1721335274500,0.32717613,63778.0,63777.0,0.78598]
[1721335274798,0.29279732,63778.0,63777.0,0.78598]
[1721335275052,0.32717735,63778.0,63777.0,0.78598]
[1721335277142,0.29279732,63778.0,63777.0,0.78598]
[1721335277342,0.32720048,63778.0,63777.0,0.78598]
[1721335278152,0.24960048,63778.0,63777.0,0.78598]
[1721335283318,0.30094188,63778.0,63777.0,0.78598]
[1721335283576,0.21519732,63778.0,63777.0,0.78598]
[1721335283744,0.30090796,63778.0,63777.0,0.78598]
[1721335284572,0.30090796,63778.0,63777.0,0.472388]
[1721335286200,0.30090796,63778.0,63777.0,0.473301]
[1721335286895,0.30090384,63778.0,63777.0,0.473301]
[1721335288300,0.29388826,63778.0,63777.0,0.473301]
[1721335289152,0.29388826,63778.0,63777.0,0.002913]
[1721335290106,0.29385307,63778.0,63777.0,0.002913]
[1721335290217,0.34089047,63778.0,63777.0,0.002913]
[1721335290922,0.29385307,63778.0,63777.0,0.615601]
[1721335291512,0.29385307,63778.0,63777.0,0.302009]
[1721335293277,0.29385307,63778.0,63777.0,0.615601]
[1721335293860,0.29385307,63778.0,63777.0,0.533401]
[1721335294220,0.34090129,63778.0,63777.0,0.219809]
[1721335295013,0.29385307,63778.0,63777.0,0.219809]
[1721335296357,0.20818174,63778.0,63777.0,0.219809]
[1721335296558,0.2938491,63778.0,63777.0,0.219809]
[1721335297173,0.2938491,63778.0,63777.0,0.159709]
[1721335297379,0.3409043,63778.0,63777.0,0.159709]
[1721335297598,0.2938491,63778.0,63777.0,0.159709]
[1721335299086,0.39123191,63778.0,63777.0,0.002913]
[1721335299708,0.3912655,63778.0,63777.0,0.002913]
[1721335302340,0.32066128,63778.0,63777.0,0.002913]
[1721335302586,0.36447018,63778.0,63777.0,0.002913]
[1721335302790,0.27879064,63778.0,63777.0,0.067013]
[1721335302944,0.29385138,63778.0,63777.0,0.067013]
[1721335303304,0.29385091,63778.0,63777.0,0.067013]
[1721335303734,0.36445916,63778.0,63777.0,0.067013]
[1721335304792,0.29385091,63778.0,63777.0,0.067013]
[1721335305207,0.36445916,63778.0,63777.0,0.067013]
[1721335305421,0.29385091,63778.0,63777.0,0.067013]
[1721335305659,0.34092201,63778.0,63777.0,0.932993]
[1721335305891,0.28960558,63778.0,63777.0,0.932993]
[1721335306100,0.3409073,63778.0,63777.0,0.932993]
[1721335306284,0.3409073,63778.0,63777.0,0.619401]
[1721335306711,0.29383665,63778.0,63777.0,0.619401]
[1721335307493,0.34090827,63778.0,63777.0,0.619401]
[1721335307694,0.34090827,63778.0,63777.0,0.932993]
[1721335307901,0.21952741,63778.0,63777.0,0.932993]
[1721335308102,0.21952741,63778.0,63777.0,1.296585]
[1721335308303,0.21952741,63778.0,63777.0,1.42677209]
[1721335308512,0.21952741,63778.0,63777.0,1.84036409]
[1721335309276,0.21951926,63778.0,63777.0,1.84035055]
[1721335309483,0.20751926,63778.0,63777.0,1.83935055]
[1721335309890,0.21151926,63778.0,63777.0,1.84435055]
[1721335310120,0.20051926,63778.0,63777.0,1.84335055]
[1721335310968,0.19651926,63778.0,63777.0,1.84335055]
[1721335311382,0.16218174,63778.0,63777.0,1.84335055]
[1721335311583,0.16218174,63778.0,63777.0,1.84435055]
[1721335311786,0.16218174,63778.0,63777.0,1.84335055]
[1721335312233,0.16218174,63778.0,63777.0,1.84535055]
[1721335312412,0.0078,63778.0,63777.0,1.8453481]
[1721335312829,0.0078,63778.0,63777.0,1.84534596]
[1721335313457,0.0078,63778.0,63777.0,1.84534603]
[1721335318649,0.0078,63778.0,63777.0,1.715177]
[1721335318823,0.0078,63778.0,63777.0,1.84534729]
[1721335321140,0.0078,63778.0,63777.0,1.715177]
[1721335321316,0.0078,63778.0,63777.0,1.84534795]
[1721335322132,0.0078,63778.0,63777.0,1.53175595]
[1721335322309,0.0078,63778.0,63777.0,1.351585]
[1721335323244,0.19651235,63778.0,63777.0,0.164709]
[1721335323444,0.19651235,63778.0,63777.0,0.478301]
[1721335324382,0.20154984,63778.0,63777.0,0.478301]
[1721335324571,0.20154984,63778.0,63777.0,0.007913]
[1721335324930,0.20154984,63778.0,63777.0,0.162709]
[1721335325364,0.20554984,63778.0,63777.0,0.162709]
[1721335327472,0.20554985,63778.0,63777.0,0.162709]
[1721335329104,0.20555139,63778.0,63777.0,0.162709]
[1721335330641,0.2055547,63778.0,63777.0,0.162709]
[1721335331214,0.20555469,63778.0,63777.0,0.162709]
[1721335331626,0.17118174,63778.0,63777.0,0.162709]
[1721335331832,0.20554567,63778.0,63777.0,0.162709]
[1721335333902,0.20554567,63778.0,63777.0,0.005913]
[1721335333903,0.27814567,63778.0,63777.0,0.005913]
[1721335334273,0.40554567,63778.0,63777.0,0.005913]
[1721335334444,0.45687112,63778.0,63777.0,0.005913]
[1721335334791,0.61366412,63778.0,63777.0,0.005913]
[1721335335203,0.60966412,63778.0,63777.0,0.005913]
[1721335335412,0.62366412,63778.0,63777.0,0.006913]
[1721335336450,0.61866412,63778.0,63777.0,0.006913]
[1721335336656,0.63266412,63778.0,63777.0,0.007913]
[1721335337055,0.63287141,63778.0,63777.0,0.007913]
[1721335337357,0.61887141,63778.0,63777.0,0.006913]
[1721335337563,0.63287141,63778.0,63777.0,0.007913]
[1721335337970,0.63286894,63778.0,63777.0,0.007913]
[1721335338390,0.63286868,63778.0,63777.0,0.007913]
[1721335338593,0.58144319,63778.0,63777.0,0.007913]
[1721335338831,0.63287245,63778.0,63777.0,0.007913]
[1721335340151,0.32525019,63778.0,63777.0,0.007913]
[1721335340360,0.24768763,63778.0,63777.0,0.069413]
[1721335340677,0.24766843,63778.0,63777.0,0.069413]
[1721335342384,0.24766843,63778.0,63777.0,0.226209]
[1721335342385,0.22466843,63778.0,63777.0,0.226209]
[1721335342836,0.22466843,63778.0,63777.0,0.539801]
[1721335343455,0.19018174,63778.0,63777.0,0.539801]
[1721335343609,0.22466175,63778.0,63777.0,0.539801]
[1721335346826,0.22466185,63778.0,63777.0,0.539801]
[1721335347972,0.22466185,63778.0,63777.0,0.226209]
[1721335348184,0.22466185,63778.0,63777.0,0.007913]
[1721335348389,0.79521664,63778.0,63777.0,0.007913]
[1721335348586,0.48162964,63778.0,63777.0,0.007913]
[1721335349673,0.32476823,63778.0,63777.0,0.007913]
[1721335350748,0.32476767,63778.0,63777.0,0.007913]
[1721335352149,0.24759288,63778.0,63777.0,0.007913]
[1721335352356,0.24759288,63778.0,63777.0,0.148613]
[1721335353744,0.22459288,63778.0,63777.0,0.148613]
[1721335353935,0.22459288,63778.0,63777.0,0.691601]
[1721335354095,0.22459288,63778.0,63777.0,1.005193]
[1721335354894,0.21059288,63778.0,63777.0,1.004193]
[1721335355291,0.19659288,63778.0,63777.0,1.003193]
[1721335355825,0.21059288,63778.0,63777.0,1.004193]
[1721335356073,0.17618174,63778.0,63777.0,1.004193]
[1721335356284,0.21055408,63778.0,63777.0,1.004193]
[1721335356660,0.22455408,63778.0,63777.0,1.005193]
[1721335357162,0.22455408,63778.0,63777.0,0.932593]
[1721335359328,0.19018174,63778.0,63777.0,0.932593]
[1721335359451,0.22456121,63778.0,63777.0,0.932593]
[1721335359663,0.19018174,63778.0,63777.0,0.932593]
[1721335359866,0.22456089,63778.0,63777.0,0.932593]
[1721335360493,0.22455568,63778.0,63777.0,0.932593]
[1721335361075,0.22455568,63778.0,63777.0,0.619001]
[1721335361273,0.22455568,63778.0,63777.0,0.007913]
[1721335361499,0.24755568,63778.0,63777.0,0.007913]
[1721335362331,0.24755568,63778.0,63777.0,0.164709]
[1721335362686,0.2475468,63778.0,63777.0,0.164709]
[1721335362836,0.2475468,63778.0,63777.0,0.626601]
[1721335365777,0.24756446,63778.0,63777.0,0.626601]
[1721335368114,0.24756446,63778.0,63777.0,0.940193]
[1721335368949,0.21318174,63778.0,63777.0,0.940193]
[1721335369135,0.24755934,63778.0,63777.0,0.940193]
[1721335369295,0.21318174,63778.0,63777.0,0.940193]
[1721335369506,0.24755935,63778.0,63777.0,0.940193]
[1721335372253,0.24755088,63778.0,63777.0,0.940193]
[1721335374206,0.24755088,63778.0,63777.0,0.626601]
[1721335375021,0.24755088,63778.0,63777.0,0.231009]
[1721335375230,0.21318174,63778.0,63777.0,0.544601]
[1721335375455,0.24754331,63778.0,63777.0,0.544601]
[1721335378449,0.21318174,63778.0,63777.0,0.544601]
[1721335378579,0.24751752,63778.0,63777.0,0.544601]
[1721335378981,0.24751757,63778.0,63777.0,0.858193]